lending/lending_fUSD_20240509
["ID","MTS","AMOUNT","RATE_DAILY","PERIOD"]
[326683312,1715219477777,-150.0,0.00029745,2]
[326683313,1715219477786,-157.050909,0.00029748,20]
[326683314,1715219477795,-200.0,0.00029749,2]
[326683315,1715219477804,-1000.0,0.00029749,10]
[326683316,1715219477813,-200.0,0.00029749,7]
[326683317,1715219477823,-500.0,0.00029749,2]
[326683318,1715219477832,-300.0,0.00029762,2]
[326683319,1715219477842,-150.0,0.00029785,2]
[326683320,1715219477852,-150.0,0.00029796,2]
[326683321,1715219477861,-153.17379926,0.00029805,2]
[326683322,1715219477871,-150.0,0.00029807,2]
[326683323,1715219477880,-150.0,0.00029808,2]
[326683324,1715219477890,-150.0,0.00029811,2]
[326683325,1715219477900,-150.0,0.00029822,2]
[326683326,1715219477909,-150.0,0.00029837,2]
[326683327,1715219477919,-150.0,0.00029844,2]
[326683328,1715219477929,-150.0,0.00029845,2]
[326683329,1715219477939,-150.0,0.00029848,2]
[326683330,1715219477949,-150.0,0.00029849,2]
[326683331,1715219477958,-150.0,0.00029857,2]
[326683332,1715219477967,-150.0,0.00029863,2]
[326683333,1715219477978,-150.0,0.00029881,2]
[326683334,1715219477988,-150.0,0.00029882,2]
[326683335,1715219477997,-158.26327163,0.00029884,2]
[326683336,1715219478007,-150.0,0.00029884,2]
[326683337,1715219478017,-150.0,0.00029887,2]
[326683338,1715219478027,-159.87,0.000299,2]
[326683339,1715219478037,-150.0,0.00029903,2]
[326683340,1715219478047,-150.0,0.00029905,2]
[326683341,1715219478057,-150.0,0.00029924,2]
[326683342,1715219478066,-150.0,0.00029926,2]
[326683343,1715219478076,-150.0,0.00029936,2]
[326683344,1715219478085,-150.0,0.00029946,2]
[326683345,1715219478095,-150.0,0.00029954,2]
[326683346,1715219478104,-150.0,0.00029969,2]
[326683347,1715219478114,-150.0,0.00029975,2]
[326683348,1715219478124,-150.0,0.00029979,2]
[326683349,1715219478134,-3123.4462947,0.00029995,2]
[326683350,1715219478143,-28127.2154117,0.00029995,2]
[326683351,1715219478153,-666.85975,0.00029995,2]
[326683352,1715219478163,-6395.62,0.00029999,2]
[326683353,1715219478173,-151.0,0.00029999,7]
[326683354,1715219478182,-151.0,0.00029999,7]
[326683355,1715219478192,-123533.44767091,0.0003,7]
[326683356,1715219478203,-20194.40031482,0.0003,4]
[326683357,1715219478212,-166.30679014,0.0003,15]
[326683358,1715219478222,-155.08192229,0.0003,4]
[326683359,1715219478231,-3721.41924182,0.0003,10]
[326683360,1715219478241,-8116.35531393,0.0003,2]
[326683361,1715219478250,-1140.18751073,0.0003,4]
[326683362,1715219478260,-2011.66,0.0003,120]
[326683363,1715219478269,-12162.0,0.0003,3]
[326683364,1715219478278,-2557.04205781,0.0003,120]
[326683365,1715219478289,-181.29017386,0.0003,30]
[326683366,1715219478298,-2223.0,0.0003,3]
[326683367,1715219478307,-160.0,0.0003,2]
[326683368,1715219478316,-343.0,0.0003,2]
[326683369,1715219478326,-118957.0,0.0003,10]
[326683370,1715219478336,-682.88815966,0.0003,4]
[326683371,1715219478345,-150.0,0.0003,2]
[326683372,1715219478354,-151.0,0.0003,7]
[326683373,1715219478363,-151.0,0.0003,7]
[326683374,1715219478373,-151.0,0.0003,7]
[326683375,1715219478382,-4266.58903322,0.0003,4]
[326683376,1715219478391,-2731.0,0.0003,120]
[326683377,1715219478400,-1316.392344,0.0003,11]
[326683378,1715219478410,-207.0,0.0003,2]
[326683379,1715219478419,-150.0,0.00030001,2]
[326683380,1715219478429,-150.0,0.00030003,2]
[326683381,1715219478438,-153.21847458,0.00030018,7]
[326683382,1715219478448,-1000.0,0.0003002,11]
[326683383,1715219478457,-150.0,0.00030027,2]
[326683384,1715219478467,-151.40745661,0.0003003,2]
[326683385,1715219478476,-153.70876652,0.00030035,2]
[326683386,1715219478486,-157.42836825,0.00030035,2]
[326683387,1715219478496,-150.0,0.00030039,2]
[326683388,1715219478506,-1000.0,0.0003004,11]
[326683389,1715219478519,-150.0,0.00030049,2]
[326683390,1715219478528,-1000.0,0.0003006,11]
[326683391,1715219478538,-150.0,0.00030075,2]
[326683392,1715219478548,-155.20712654,0.00030079,7]
[326683393,1715219478559,-1000.0,0.0003008,11]
[326683394,1715219478568,-150.0,0.00030081,2]
[326683395,1715219478578,-150.0,0.00030085,2]
[326683396,1715219478587,-160.0,0.000301,2]
[326683397,1715219478600,-500.0,0.000301,2]
[326683398,1715219478611,-351.0,0.000301,2]
[326683399,1715219478620,-242.450723,0.000301,2]
[326683400,1715219478629,-397.7,0.000301,2]
[326683401,1715219478638,-1000.0,0.000301,11]
[326683402,1715219478648,-155.354094,0.000301,6]
[326683403,1715219478659,-150.0,0.00030108,2]
[326683404,1715219478669,-150.0,0.0003011,2]
[326683405,1715219478679,-150.0,0.00030122,2]
[326683406,1715219478690,-150.0,0.00030127,2]
[326683407,1715219478700,-849.27,0.00030135,5]
[326683408,1715219478710,-548.06,0.00030135,5]
[326683409,1715219478719,-935.56,0.00030135,5]
[326683410,1715219478729,-958.88,0.00030135,5]
[326683411,1715219478738,-836.52,0.00030135,5]
[326683412,1715219478748,-6395.62,0.00030135,2]
[326683413,1715219478757,-2886.53,0.00030135,5]
[326683414,1715219478767,-9620.37,0.00030135,5]
[326683415,1715219478777,-978.11,0.00030135,5]
[326683416,1715219478787,-2297.03740705,0.00030136,4]
[326683417,1715219478797,-164.24023674,0.00030136,2]
[326683418,1715219478806,-8838.37993759,0.00030136,4]
[326683419,1715219478816,-214.0,0.00030136,2]
[326683420,1715219478825,-213.0,0.00030136,2]
[326683421,1715219478835,-213.0,0.00030136,2]
[326683422,1715219478845,-213.0,0.00030136,2]
[326683423,1715219478854,-213.0,0.00030136,2]
[326683424,1715219478863,-211.0,0.00030136,2]
[326683425,1715219478873,-622.21,0.00030136,5]
[326683426,1715219478882,-500.0,0.00030136,5]
[326683427,1715219478892,-500.0,0.00030136,5]
[326683428,1715219478901,-500.0,0.00030136,5]
[326683429,1715219478910,-500.0,0.00030136,5]
[326683430,1715219478920,-500.0,0.00030136,5]
[326683431,1715219478929,-500.0,0.00030136,5]
[326683432,1715219478938,-204.0,0.00030136,2]
[326683433,1715219478948,-224.0,0.00030136,2]
[326683434,1715219478957,-213.0,0.00030136,2]
[326683435,1715219478966,-500.0,0.00030136,5]
[326683436,1715219478976,-500.0,0.00030136,5]
[326683437,1715219478986,-664.55,0.00030136,5]
[326683438,1715219478995,-1067.91,0.00030136,5]
[326683439,1715219479005,-500.0,0.00030136,5]
[326683440,1715219479014,-664.08,0.00030136,5]
[326683441,1715219479024,-500.0,0.00030136,5]
[326683442,1715219479033,-543.73,0.00030136,5]
[326683443,1715219479043,-500.0,0.00030136,5]
[326683444,1715219479053,-500.0,0.00030136,5]
[326683445,1715219479062,-500.0,0.00030136,5]
[326683446,1715219479072,-1190.8,0.00030136,5]
[326683447,1715219479082,-859.07,0.00030136,5]
[326683448,1715219479091,-986.6,0.00030136,5]
[326683449,1715219479100,-500.0,0.00030136,5]
[326683450,1715219479110,-424.27,0.00030136,5]
[326683451,1715219479120,-1149.3,0.00030136,5]
[326683452,1715219479129,-516.86,0.00030136,5]
[326683453,1715219479140,-500.0,0.00030136,5]
[326683454,1715219479149,-916.99,0.00030136,5]
[326683455,1715219479158,-538.32,0.00030136,5]
[326683456,1715219479168,-656.13,0.00030136,5]
[326683457,1715219479177,-500.0,0.00030136,5]
[326683458,1715219479187,-500.0,0.00030136,5]
[326683459,1715219479197,-1284.05,0.00030136,5]
[326683460,1715219479207,-1127.51,0.00030136,5]
[326683461,1715219479216,-539.44,0.00030136,5]
[326683462,1715219479226,-425.19,0.00030136,5]
[326683463,1715219479237,-500.0,0.00030136,5]
[326683464,1715219479247,-500.0,0.00030136,5]
[326683465,1715219479256,-1087.69,0.00030136,5]
[326683466,1715219479266,-151.0,0.00030136,7]
[326683467,1715219479276,-500.0,0.00030136,5]
[326683468,1715219479286,-1107.66,0.00030136,5]
[326683469,1715219479295,-500.0,0.00030136,5]
[326683470,1715219479305,-967.05,0.00030136,5]
[326683471,1715219479314,-283.748244,0.00030136,7]
[326683472,1715219479324,-313.22,0.00030136,5]
[326683473,1715219479333,-500.0,0.00030136,5]
[326683474,1715219479343,-482.95376631,0.00030136,5]
[326683475,1715219479353,-3088.76,0.00030136,5]
[326683476,1715219479363,-151.0,0.00030136,7]
[326683477,1715219479372,-586.24,0.00030136,5]
[326683478,1715219479382,-824.35,0.00030136,5]
[326683479,1715219479393,-500.0,0.00030136,5]
[326683480,1715219479402,-830.79,0.00030136,5]
[326683481,1715219479411,-500.0,0.00030136,5]
[326683482,1715219479421,-500.0,0.00030136,5]
[326683483,1715219479432,-500.0,0.00030136,5]
[326683484,1715219479442,-500.0,0.00030136,5]
[326683485,1715219479451,-500.0,0.00030136,5]
[326683486,1715219479460,-1190.63,0.00030136,5]
[326683487,1715219479472,-540.0,0.00030136,5]
[326683488,1715219479482,-500.0,0.00030136,5]
[326683489,1715219479492,-500.0,0.00030136,5]
[326683490,1715219479502,-500.0,0.00030136,5]
[326683491,1715219479512,-443.77,0.00030136,5]
[326683492,1715219479525,-500.0,0.00030136,5]
[326683493,1715219479535,-500.0,0.00030136,5]
[326683494,1715219479544,-7854.15,0.00030136,5]
[326683495,1715219479554,-648.9,0.00030136,5]
[326683496,1715219479565,-500.0,0.00030136,5]
[326683497,1715219479575,-500.0,0.00030136,5]
[326683498,1715219479584,-583.26,0.00030136,5]
[326683499,1715219479595,-500.0,0.00030136,5]
[326683500,1715219479604,-500.0,0.00030136,5]
[326683501,1715219479614,-500.0,0.00030136,5]
[326683502,1715219479623,-500.0,0.00030136,5]
[326683503,1715219479633,-1614.76,0.00030136,5]
[326683504,1715219479642,-500.0,0.00030136,5]
[326683505,1715219479652,-602.89,0.00030136,5]
[326683506,1715219479661,-500.0,0.00030136,5]
[326683507,1715219479671,-1252.16,0.00030136,5]
[326683508,1715219479680,-833.8,0.00030136,5]
[326683509,1715219479689,-500.0,0.00030136,5]
[326683510,1715219479699,-753.29,0.00030136,5]
[326683511,1715219479709,-500.0,0.00030136,5]
[326683512,1715219479718,-1260.22,0.00030136,5]
[326683513,1715219479729,-536.71,0.00030136,5]
[326683514,1715219479738,-500.0,0.00030136,5]
[326683515,1715219479747,-500.0,0.00030136,5]
[326683516,1715219479756,-223.94,0.00030136,5]
[326683517,1715219479765,-879.49,0.00030136,5]
[326683518,1715219479774,-500.0,0.00030136,5]
[326683519,1715219479783,-920.64,0.00030136,5]
[326683520,1715219479793,-948.97,0.00030136,5]
[326683521,1715219479802,-462.06,0.00030136,5]
[326683522,1715219479811,-500.0,0.00030136,5]
[326683523,1715219479824,-1049.1,0.00030136,5]
[326683524,1715219479833,-500.0,0.00030136,5]
[326683525,1715219479843,-713.76,0.00030136,5]
[326683526,1715219479853,-500.0,0.00030136,5]
[326683527,1715219479862,-500.0,0.00030136,5]
[326683528,1715219479872,-717.41,0.00030136,5]
[326683529,1715219479882,-742.57,0.00030136,5]
[326683530,1715219479892,-899.08,0.00030136,5]
[326683531,1715219479901,-549.58,0.00030136,5]
[326683532,1715219479910,-500.0,0.00030136,5]
[326683533,1715219479921,-500.0,0.00030136,5]
[326683534,1715219479931,-2127.85,0.00030136,5]
[326683535,1715219479941,-679.21,0.00030136,5]
[326683536,1715219479951,-1344.21,0.00030136,5]
[326683537,1715219479962,-1000.11,0.00030136,5]
[326683538,1715219479971,-1309.5,0.00030136,5]
[326683539,1715219479981,-946.95,0.00030136,5]
[326683540,1715219479990,-500.0,0.00030136,5]
[326683541,1715219479999,-10717.14,0.00030136,5]
[326683542,1715219480008,-500.0,0.00030136,5]
[326683543,1715219480017,-500.0,0.00030136,5]
[326683544,1715219480026,-500.0,0.00030136,5]
[326683545,1715219480035,-526.26,0.00030136,5]
[326683546,1715219480045,-1072.2,0.00030136,5]
[326683547,1715219480054,-500.0,0.00030136,5]
[326683548,1715219480064,-623.06,0.00030136,5]
[326683549,1715219480073,-500.0,0.00030136,5]
[326683550,1715219480082,-592.29,0.00030136,5]
[326683551,1715219480092,-500.0,0.00030136,5]
[326683552,1715219480101,-730.96,0.00030136,5]
[326683553,1715219480111,-500.0,0.00030136,5]
[326683554,1715219480120,-688.36,0.00030136,5]
[326683555,1715219480130,-977.23,0.00030136,5]
[326683556,1715219480139,-800.11,0.00030136,5]
[326683557,1715219480148,-500.0,0.00030136,5]
[326683558,1715219480158,-500.0,0.00030136,5]
[326683559,1715219480167,-914.69,0.00030136,5]
[326683560,1715219480176,-500.0,0.00030136,5]
[326683561,1715219480185,-500.0,0.00030136,5]
[326683562,1715219480194,-500.0,0.00030136,5]
[326683563,1715219480203,-614.37,0.00030136,5]
[326683564,1715219480212,-500.0,0.00030136,5]
[326683565,1715219480221,-500.0,0.00030136,5]
[326683566,1715219480232,-500.0,0.00030136,5]
[326683567,1715219480241,-630.34,0.00030136,5]
[326683568,1715219480384,-837.98,0.00030136,5]
[326683569,1715219480395,-505.56,0.00030136,5]
[326683570,1715219480405,-500.0,0.00030136,5]
[326683571,1715219480420,-1368.12,0.00030136,5]
[326683572,1715219480430,-1488.76,0.00030136,5]
[326683573,1715219480440,-639.8,0.00030136,5]
[326683574,1715219480450,-1390.96,0.00030136,5]
[326683575,1715219480459,-500.0,0.00030136,5]
[326683576,1715219480468,-576.66,0.00030136,5]
[326683577,1715219480477,-1413.09,0.00030136,5]
[326683578,1715219480487,-500.0,0.00030136,5]
[326683579,1715219480497,-1806.26,0.00030136,5]
[326683580,1715219480506,-2132.72,0.00030136,5]
[326683581,1715219480520,-500.0,0.00030136,5]
[326683582,1715219480530,-817.69,0.00030136,5]
[326683583,1715219480539,-500.0,0.00030136,5]
[326683584,1715219480549,-748.07,0.00030136,5]
[326683585,1715219480560,-3706.74,0.00030136,5]
[326683586,1715219480569,-1835.25,0.00030136,5]
[326683587,1715219480578,-500.0,0.00030136,5]
[326683588,1715219480587,-739.41,0.00030136,5]
[326683589,1715219480596,-563.1,0.00030136,5]
[326683590,1715219480606,-1905.32,0.00030136,5]
[326683591,1715219480615,-500.0,0.00030136,5]
[326683592,1715219480624,-500.0,0.00030136,2]
[326683593,1715219480633,-500.0,0.00030136,5]
[326683594,1715219480642,-884.61,0.00030136,5]
[326683595,1715219480651,-500.0,0.00030136,5]
[326683596,1715219480660,-597.94,0.00030136,5]
[326683597,1715219480669,-556.45,0.00030136,5]
[326683598,1715219480678,-847.87,0.00030136,5]
[326683599,1715219480688,-500.0,0.00030136,5]
[326683600,1715219480697,-3283.17,0.00030136,5]
[326683601,1715219480706,-764.62,0.00030136,5]
[326683602,1715219480715,-1261.87,0.00030136,5]
[326683603,1715219480724,-500.0,0.00030136,5]
[326683604,1715219480734,-926.98,0.00030136,5]
[326683605,1715219480743,-3186.51,0.00030136,5]
[326683606,1715219480753,-500.0,0.00030136,5]
[326683607,1715219480762,-522.1,0.00030136,5]
[326683608,1715219480771,-834.51,0.00030136,5]
[326683609,1715219480780,-978.86,0.00030136,5]
[326683610,1715219480789,-1412.32,0.00030136,5]
[326683611,1715219480798,-930.77,0.00030136,5]
[326683612,1715219480807,-790.78,0.00030136,5]
[326683613,1715219480816,-1466.13,0.00030136,5]
[326683614,1715219480826,-500.0,0.00030136,5]
[326683615,1715219480836,-500.0,0.00030136,5]
[326683616,1715219480845,-664.98,0.00030136,5]
[326683617,1715219480855,-671.28,0.00030136,5]
[326683618,1715219480864,-500.0,0.00030136,5]
[326683619,1715219480873,-2901.1,0.00030136,5]
[326683620,1715219480882,-2044.97,0.00030136,5]
[326683621,1715219480891,-500.0,0.00030136,5]
[326683622,1715219480900,-5973.26,0.00030136,5]
[326683623,1715219480911,-863.56,0.00030136,5]
[326683624,1715219480920,-1814.52,0.00030136,5]
[326683625,1715219480929,-992.29,0.00030136,5]
[326683626,1715219480939,-500.0,0.00030136,5]
[326683627,1715219480949,-505.36,0.00030136,5]
[326683628,1715219480958,-748.66,0.00030136,5]
[326683629,1715219480968,-500.0,0.00030136,5]
[326683630,1715219480979,-151.0,0.00030136,7]
[326683631,1715219480989,-500.0,0.00030136,5]
[326683632,1715219481000,-1430.38,0.00030136,5]
[326683633,1715219481009,-1089.21,0.00030136,5]
[326683634,1715219481020,-2297.66,0.00030136,5]
[326683635,1715219481030,-166.663368,0.00030136,7]
[326683636,1715219481040,-500.0,0.00030136,5]
[326683637,1715219481049,-1048.81,0.00030136,5]
[326683638,1715219481058,-570.71,0.00030136,5]
[326683639,1715219481068,-500.0,0.00030136,5]
[326683640,1715219481077,-520.44,0.00030136,5]
[326683641,1715219481086,-1012.27,0.00030136,5]
[326683642,1715219481095,-500.0,0.00030136,5]
[326683643,1715219481105,-1227.81,0.00030136,5]
[326683644,1715219481114,-1033.87,0.00030136,5]
[326683645,1715219481124,-1014.04,0.00030136,5]
[326683646,1715219481133,-500.0,0.00030136,5]
[326683647,1715219481143,-794.75,0.00030136,5]
[326683648,1715219481152,-693.58,0.00030136,5]
[326683649,1715219481162,-500.0,0.00030136,5]
[326683650,1715219481172,-2277.84,0.00030136,5]
[326683651,1715219481182,-579.99,0.00030136,5]
[326683652,1715219481191,-998.45,0.00030136,5]
[326683653,1715219481201,-772.2,0.00030136,5]
[326683654,1715219481211,-500.0,0.00030136,5]
[326683655,1715219481221,-970.72,0.00030136,5]
[326683656,1715219481230,-500.0,0.00030136,5]
[326683657,1715219481239,-1604.12,0.00030136,5]
[326683658,1715219481249,-951.05,0.00030136,5]
[326683659,1715219481259,-1453.73,0.00030136,5]
[326683660,1715219481269,-1514.39,0.00030136,5]
[326683661,1715219481279,-1096.87,0.00030136,5]
[326683662,1715219481290,-2059.09,0.00030136,5]
[326683663,1715219481300,-500.0,0.00030136,5]
[326683664,1715219481310,-500.0,0.00030136,5]
[326683665,1715219481320,-1017.3,0.00030136,5]
[326683666,1715219481330,-1390.34,0.00030136,5]
[326683667,1715219481339,-500.0,0.00030136,5]
[326683668,1715219481349,-934.8,0.00030136,5]
[326683669,1715219481359,-2167.7,0.00030136,5]
[326683670,1715219481368,-917.04,0.00030136,5]
[326683671,1715219481378,-500.0,0.00030136,5]
[326683672,1715219481387,-961.5,0.00030136,5]
[326683673,1715219481396,-500.0,0.00030136,5]
[326683674,1715219481405,-500.0,0.00030136,5]
[326683675,1715219481415,-500.0,0.00030136,5]
[326683676,1715219481424,-1081.95,0.00030136,5]
[326683677,1715219481433,-858.13,0.00030136,5]
[326683678,1715219481443,-663.84,0.00030136,5]
[326683679,1715219481452,-1568.0,0.00030136,5]
[326683680,1715219481462,-9872.43,0.00030136,5]
[326683681,1715219481471,-4301.21,0.00030136,5]
[326683682,1715219481482,-500.0,0.00030136,5]
[326683683,1715219481491,-500.0,0.00030136,5]
[326683684,1715219481501,-1610.77,0.00030136,5]
[326683685,1715219481511,-1585.51,0.00030136,5]
[326683686,1715219481525,-652.36,0.00030136,5]
[326683687,1715219481534,-22439.21,0.00030137,2]
[326683688,1715219481544,-150.0,0.00030137,2]
[326683689,1715219481554,-150.0,0.00030137,2]
[326683690,1715219481564,-150.0,0.00030137,2]
[326683691,1715219481573,-157.050908,0.00030148,24]
[326683692,1715219481583,-151.0,0.00030173,2]
[326683693,1715219481593,-153.17379926,0.00030244,7]
[326683694,1715219481603,-150.0,0.00030281,2]
[326683695,1715219481613,-151.40745661,0.00030448,2]
[326683696,1715219481622,-157.050905,0.00030448,24]
[326683697,1715219481631,-851.64,0.00030459,2]
[326683698,1715219481640,-500.0,0.000305,120]
[326683699,1715219481650,-157.92529717,0.00030603,7]
[326683700,1715219481659,-152.0,0.00030654,5]
[326683701,1715219481669,-302.0,0.0003068,4]
[326683702,1715219481678,-849.27,0.00030683,5]
[326683703,1715219481688,-548.06,0.00030683,5]
[326683704,1715219481697,-935.56,0.00030683,5]
[326683705,1715219481706,-958.88,0.00030683,5]
[326683706,1715219481716,-836.52,0.00030683,5]
[326683707,1715219481725,-6395.62,0.00030683,2]
[326683708,1715219481736,-2886.53,0.00030683,5]
[326683709,1715219481746,-9620.37,0.00030683,5]
[326683710,1715219481755,-978.11,0.00030683,5]
[326683711,1715219481765,-2339.18,0.00030684,5]
[326683712,1715219481774,-622.21,0.00030684,5]
[326683713,1715219481783,-500.0,0.00030684,5]
[326683714,1715219481792,-500.0,0.00030684,5]
[326683715,1715219481801,-500.0,0.00030684,5]
[326683716,1715219481811,-500.0,0.00030684,5]
[326683717,1715219481820,-500.0,0.00030684,5]
[326683718,1715219481829,-500.0,0.00030684,5]
[326683719,1715219481838,-500.0,0.00030684,5]
[326683720,1715219481848,-444.48653174,0.00030684,5]
[326683721,1715219481857,-664.55,0.00030684,5]
[326683722,1715219481866,-1067.91,0.00030684,5]
[326683723,1715219481876,-500.0,0.00030684,5]
[326683724,1715219481885,-664.08,0.00030684,5]
[326683725,1715219481894,-500.0,0.00030684,5]
[326683726,1715219481903,-543.73,0.00030684,5]
[326683727,1715219481912,-500.0,0.00030684,5]
[326683728,1715219481921,-439.08,0.00030684,5]
[326683729,1715219481930,-500.0,0.00030684,5]
[326683730,1715219481939,-1190.8,0.00030684,5]
[326683731,1715219481948,-859.07,0.00030684,5]
[326683732,1715219481957,-986.6,0.00030684,5]
[326683733,1715219481966,-500.0,0.00030684,5]
[326683734,1715219481976,-1149.3,0.00030684,5]
[326683735,1715219481986,-516.86,0.00030684,5]
[326683736,1715219481996,-500.0,0.00030684,5]
[326683737,1715219482005,-916.99,0.00030684,5]
[326683738,1715219482014,-538.32,0.00030684,5]
[326683739,1715219482024,-656.13,0.00030684,5]
[326683740,1715219482033,-538.17,0.00030684,5]
[326683741,1715219482042,-500.0,0.00030684,5]
[326683742,1715219482052,-1284.05,0.00030684,5]
[326683743,1715219482062,-1127.51,0.00030684,5]
[326683744,1715219482071,-539.44,0.00030684,5]
[326683745,1715219482080,-243.87,0.00030684,5]
[326683746,1715219482089,-500.0,0.00030684,5]
[326683747,1715219482098,-1087.69,0.00030684,5]
[326683748,1715219482107,-151.0,0.00030684,7]
[326683749,1715219482116,-1107.66,0.00030684,5]
[326683750,1715219482125,-967.05,0.00030684,5]
[326683751,1715219482135,-500.0,0.00030684,5]
[326683752,1715219482144,-500.0,0.00030684,5]
[326683753,1715219482153,-3088.76,0.00030684,5]
[326683754,1715219482162,-151.0,0.00030684,7]
[326683755,1715219482171,-824.35,0.00030684,5]
[326683756,1715219482180,-500.0,0.00030684,5]
[326683757,1715219482189,-830.79,0.00030684,5]
[326683758,1715219482199,-500.0,0.00030684,5]
[326683759,1715219482208,-445.58019604,0.00030684,5]
[326683760,1715219482219,-500.0,0.00030684,5]
[326683761,1715219482228,-500.0,0.00030684,5]
[326683762,1715219482239,-500.0,0.00030684,5]
[326683763,1715219482248,-1190.63,0.00030684,5]
[326683764,1715219482258,-540.0,0.00030684,5]
[326683765,1715219482268,-177.62,0.00030684,5]
[326683766,1715219482277,-247.02,0.00030684,5]
[326683767,1715219482289,-500.0,0.00030684,5]
[326683768,1715219482298,-500.0,0.00030684,5]
[326683769,1715219482308,-500.0,0.00030684,5]
[326683770,1715219482317,-7854.15,0.00030684,5]
[326683771,1715219482327,-648.9,0.00030684,5]
[326683772,1715219482337,-500.0,0.00030684,5]
[326683773,1715219482350,-554.09,0.00030684,5]
[326683774,1715219482364,-583.26,0.00030684,5]
[326683775,1715219482374,-500.0,0.00030684,5]
[326683776,1715219482383,-500.0,0.00030684,5]
[326683777,1715219482393,-420.88399449,0.00030684,5]
[326683778,1715219482402,-500.0,0.00030684,5]
[326683779,1715219482411,-1614.76,0.00030684,5]
[326683780,1715219482421,-500.0,0.00030684,5]
[326683781,1715219482431,-602.89,0.00030684,5]
[326683782,1715219482441,-500.0,0.00030684,5]
[326683783,1715219482451,-1252.16,0.00030684,5]
[326683784,1715219482460,-833.8,0.00030684,5]
[326683785,1715219482470,-500.0,0.00030684,5]
[326683786,1715219482481,-753.29,0.00030684,5]
[326683787,1715219482490,-1260.22,0.00030684,5]
[326683788,1715219482499,-500.0,0.00030684,5]
[326683789,1715219482509,-536.71,0.00030684,5]
[326683790,1715219482524,-500.0,0.00030684,5]
[326683791,1715219482533,-500.0,0.00030684,5]
[326683792,1715219482543,-223.94,0.00030684,5]
[326683793,1715219482553,-879.49,0.00030684,5]
[326683794,1715219482563,-500.0,0.00030684,5]
[326683795,1715219482573,-920.64,0.00030684,5]
[326683796,1715219482583,-948.97,0.00030684,5]
[326683797,1715219482593,-500.0,0.00030684,5]
[326683798,1715219482605,-1049.1,0.00030684,5]
[326683799,1715219482614,-500.0,0.00030684,5]
[326683800,1715219482624,-713.76,0.00030684,5]
[326683801,1715219482633,-500.0,0.00030684,5]
[326683802,1715219482643,-500.0,0.00030684,5]
[326683803,1715219482652,-717.41,0.00030684,5]
[326683804,1715219482662,-742.57,0.00030684,5]
[326683805,1715219482671,-899.08,0.00030684,5]
[326683806,1715219482680,-500.0,0.00030684,5]
[326683807,1715219482690,-2127.85,0.00030684,5]
[326683808,1715219482699,-679.21,0.00030684,5]
[326683809,1715219482709,-1344.21,0.00030684,5]
[326683810,1715219482719,-1000.11,0.00030684,5]
[326683811,1715219482728,-1309.5,0.00030684,5]